fUSD/lending_fUSD_20250623
["ID","MTS","AMOUNT","RATE_DAILY","PERIOD"]
[367265777,1750722668959,-2005.0,0.00022583,2]
[367265778,1750722668968,-1677.0,0.00022583,2]
[367265779,1750722668977,-4097.0,0.00022583,2]
[367265780,1750722668986,-856.0,0.00022583,2]
[367265781,1750722668995,-885.0,0.00022583,2]
[367265782,1750722669005,-219.105,0.00022583,2]
[367265783,1750722669014,-429.50732043,0.00022596,2]
[367265784,1750722669023,-429.50732043,0.00022639,2]
[367265785,1750722669033,-386.41823916,0.00022656,2]
[367265786,1750722669042,-11163.84941026,0.00022659,7]
[367265787,1750722669052,-6245.65629074,0.00022669,2]
[367265788,1750722669061,-162.53329233,0.00022678,2]
[367265789,1750722669071,-1605.0,0.000227,2]
[367265790,1750722669080,-501.0,0.000227,2]
[367265791,1750722669088,-376.0,0.000227,2]
[367265792,1750722669098,-769.0,0.000227,2]
[367265793,1750722669107,-500.0,0.00022721,2]
[367265794,1750722669116,-500.0,0.00022721,2]
[367265795,1750722669126,-1042.85112287,0.00022721,2]
[367265797,1750722669135,-1000.0,0.00022721,2]
[367265798,1750722669144,-450.40816069,0.00022723,2]
[367265799,1750722669153,-500.0,0.00022738,2]
[367265800,1750722669162,-500.0,0.00022738,2]
[367265801,1750722669171,-768.02,0.00022738,2]
[367265802,1750722669180,-768.02,0.00022738,2]
[367265803,1750722669189,-500.0,0.00022738,2]
[367265804,1750722669198,-500.0,0.00022738,2]
[367265805,1750722669207,-500.0,0.00022738,2]
[367265806,1750722669216,-500.0,0.00022738,2]
[367265807,1750722669225,-151.0,0.00022738,7]
[367265808,1750722669235,-4560.06,0.00022738,2]
[367265809,1750722669246,-4560.06,0.00022738,2]
[367265810,1750722669255,-627.28,0.00022738,2]
[367265811,1750722669264,-627.28,0.00022738,2]
[367265812,1750722669274,-300.0,0.00022738,2]
[367265813,1750722669283,-666.0,0.00022738,2]
[367265814,1750722669293,-666.0,0.00022738,2]
[367265815,1750722669303,-300.0,0.00022738,2]
[367265816,1750722669312,-490.0,0.00022739,2]
[367265817,1750722669322,-490.0,0.00022739,2]
[367265818,1750722669331,-490.0,0.00022739,2]
[367265819,1750722669340,-544.01,0.00022739,2]
[367265820,1750722669350,-490.0,0.00022739,2]
[367265821,1750722669359,-490.0,0.00022739,2]
[367265822,1750722669372,-490.0,0.00022739,2]
[367265823,1750722669383,-490.0,0.00022739,2]
[367265824,1750722669392,-490.0,0.00022739,2]
[367265825,1750722669401,-490.0,0.00022739,2]
[367265826,1750722669410,-490.0,0.00022739,2]
[367265827,1750722669419,-490.0,0.00022739,2]
[367265828,1750722669428,-151.0,0.00022739,7]
[367265829,1750722669437,-490.0,0.00022739,2]
[367265830,1750722669446,-769.985057,0.00022739,2]
[367265831,1750722669455,-490.0,0.00022739,2]
[367265832,1750722669465,-490.0,0.00022739,2]
[367265833,1750722669474,-846.230061,0.00022739,2]
[367265834,1750722669483,-2887.656586,0.00022739,2]
[367265835,1750722669492,-490.0,0.00022739,2]
[367265836,1750722669501,-490.0,0.00022739,2]
[367265837,1750722669510,-490.0,0.00022739,2]
[367265838,1750722669519,-490.0,0.00022739,2]
[367265839,1750722669528,-490.0,0.00022739,2]
[367265840,1750722669538,-155.477472,0.00022739,2]
[367265841,1750722669548,-565.91087868,0.00022739,2]
[367265842,1750722669557,-151.0,0.00022739,7]
[367265843,1750722669567,-490.0,0.00022739,2]
[367265844,1750722669576,-490.0,0.00022739,2]
[367265845,1750722669586,-490.0,0.00022739,2]
[367265846,1750722669595,-490.0,0.00022739,2]
[367265847,1750722669604,-355.50919207,0.00022739,2]
[367265848,1750722669614,-490.0,0.00022739,2]
[367265849,1750722669623,-565.9,0.00022739,2]
[367265850,1750722669632,-490.0,0.00022739,2]
[367265851,1750722669641,-490.0,0.00022739,2]
[367265852,1750722669651,-713.41,0.00022739,2]
[367265853,1750722669661,-490.0,0.00022739,2]
[367265854,1750722669671,-828.92,0.00022739,2]
[367265855,1750722669680,-490.0,0.00022739,2]
[367265856,1750722669690,-1068.05,0.00022739,2]
[367265857,1750722669699,-197.73,0.00022739,2]
[367265858,1750722669709,-490.0,0.00022739,2]
[367265859,1750722669719,-490.0,0.00022739,2]
[367265860,1750722669728,-490.0,0.00022739,2]
[367265861,1750722669738,-490.0,0.00022739,2]
[367265862,1750722669748,-490.0,0.00022739,2]
[367265863,1750722669758,-490.0,0.00022739,2]
[367265864,1750722669768,-490.0,0.00022739,2]
[367265865,1750722669779,-490.0,0.00022739,2]
[367265866,1750722669788,-490.0,0.00022739,2]
[367265867,1750722669799,-500.18,0.00022739,2]
[367265868,1750722669809,-716.27,0.00022739,2]
[367265869,1750722669818,-155.47747,0.00022739,2]
[367265870,1750722669828,-592.26997406,0.00022739,2]
[367265871,1750722669841,-545.2,0.00022739,2]
[367265872,1750722669851,-552.43,0.00022739,2]
[367265873,1750722669861,-490.0,0.00022739,2]
[367265874,1750722669870,-601.5,0.00022739,2]
[367265875,1750722669880,-592.02058404,0.00022739,2]
[367265876,1750722669890,-490.0,0.00022739,2]
[367265877,1750722669899,-631.98971268,0.00022739,2]
[367265878,1750722669908,-490.0,0.00022739,2]
[367265879,1750722669919,-490.0,0.00022739,2]
[367265880,1750722669930,-490.0,0.00022739,2]
[367265881,1750722669941,-611.92,0.00022739,2]
[367265882,1750722669952,-490.0,0.00022739,2]
[367265883,1750722669965,-952.95,0.00022739,2]
[367265884,1750722669974,-490.0,0.00022739,2]
[367265885,1750722669985,-718.57,0.00022739,2]
[367265886,1750722669995,-490.0,0.00022739,2]
[367265887,1750722670005,-490.0,0.00022739,2]
[367265888,1750722670015,-490.0,0.00022739,2]
[367265889,1750722670025,-757.18,0.00022739,2]
[367265890,1750722670037,-679.45,0.00022739,2]
[367265891,1750722670047,-479.18422265,0.00022739,2]
[367265892,1750722670059,-514.37,0.00022739,2]
[367265893,1750722670071,-500.0,0.00022739,2]
[367265894,1750722670080,-490.0,0.00022739,2]
[367265895,1750722670090,-311.57258097,0.00022739,2]
[367265896,1750722670100,-490.0,0.00022739,2]
[367265897,1750722670111,-1110.86,0.00022739,2]
[367265898,1750722670122,-490.0,0.00022739,2]
[367265899,1750722670132,-490.0,0.00022739,2]
[367265900,1750722670143,-639.7,0.00022739,2]
[367265901,1750722670153,-505.49,0.00022739,2]
[367265902,1750722670162,-490.0,0.00022739,2]
[367265903,1750722670172,-490.0,0.00022739,2]
[367265904,1750722670182,-491.56,0.00022739,2]
[367265905,1750722670192,-490.0,0.00022739,2]
[367265906,1750722670201,-297.190816,0.00022739,7]
[367265907,1750722670211,-490.0,0.00022739,2]
[367265908,1750722670220,-582.87,0.00022739,2]
[367265909,1750722670230,-490.0,0.00022739,2]
[367265910,1750722670240,-751.41,0.00022739,2]
[367265911,1750722670250,-490.0,0.00022739,2]
[367265912,1750722670259,-490.11,0.00022739,2]
[367265913,1750722670269,-490.0,0.00022739,2]
[367265914,1750722670279,-980.74,0.00022739,2]
[367265915,1750722670288,-554.04,0.00022739,2]
[367265916,1750722670298,-609.37,0.00022739,2]
[367265917,1750722670307,-490.0,0.00022739,2]
[367265918,1750722670317,-490.0,0.00022739,2]
[367265919,1750722670331,-533.71,0.00022739,2]
[367265920,1750722670341,-490.0,0.00022739,2]
[367265921,1750722670351,-490.0,0.00022739,2]
[367265922,1750722670361,-849.14,0.00022739,2]
[367265923,1750722670371,-490.0,0.00022739,2]
[367265924,1750722670381,-490.0,0.00022739,2]
[367265925,1750722670391,-490.0,0.00022739,2]
[367265926,1750722670401,-491.0,0.00022739,2]
[367265927,1750722670410,-490.0,0.00022739,2]
[367265928,1750722670420,-490.0,0.00022739,2]
[367265929,1750722670430,-1013.16,0.00022739,2]
[367265930,1750722670440,-490.0,0.00022739,2]
[367265931,1750722670449,-490.0,0.00022739,2]
[367265932,1750722670459,-490.0,0.00022739,2]
[367265933,1750722670468,-490.0,0.00022739,2]
[367265934,1750722670478,-452.72819961,0.00022739,2]
[367265935,1750722670488,-490.0,0.00022739,2]
[367265936,1750722670497,-780.51,0.00022739,2]
[367265937,1750722670507,-579.65,0.00022739,2]
[367265938,1750722670516,-869.78,0.00022739,2]
[367265939,1750722670526,-660.96,0.00022739,2]
[367265940,1750722670535,-593.95,0.00022739,2]
[367265941,1750722670544,-627.48,0.00022739,2]
[367265942,1750722670554,-633.11,0.00022739,2]
[367265943,1750722670564,-785.73,0.00022739,2]
[367265944,1750722670574,-490.0,0.00022739,2]
[367265945,1750722670583,-490.0,0.00022739,2]
[367265946,1750722670593,-490.0,0.00022739,2]
[367265947,1750722670603,-490.0,0.00022739,2]
[367265948,1750722670612,-918.6,0.00022739,2]
[367265949,1750722670622,-490.0,0.00022739,2]
[367265950,1750722670632,-490.0,0.00022739,2]
[367265951,1750722670641,-490.0,0.00022739,2]
[367265952,1750722670650,-497.36,0.00022739,2]
[367265953,1750722670661,-490.0,0.00022739,2]
[367265954,1750722670670,-531.11,0.00022739,2]
[367265955,1750722670680,-589.72,0.00022739,2]
[367265956,1750722670691,-602.51,0.00022739,2]
[367265957,1750722670707,-759.11,0.00022739,2]
[367265958,1750722670729,-490.0,0.00022739,2]
[367265959,1750722670739,-502.6,0.00022739,2]
[367265960,1750722670748,-1316.83,0.00022739,2]
[367265961,1750722670758,-975.58,0.00022739,2]
[367265962,1750722670768,-949.61,0.00022739,2]
[367265963,1750722670777,-490.0,0.00022739,2]
[367265964,1750722670786,-490.0,0.00022739,2]
[367265965,1750722670797,-490.0,0.00022739,2]
[367265966,1750722670807,-490.0,0.00022739,2]
[367265967,1750722670816,-653.64,0.00022739,2]
[367265968,1750722670826,-490.0,0.00022739,2]
[367265969,1750722670838,-490.0,0.00022739,2]
[367265970,1750722670847,-490.0,0.00022739,2]
[367265971,1750722670857,-490.0,0.00022739,2]
[367265972,1750722670866,-490.0,0.00022739,2]
[367265973,1750722670876,-490.0,0.00022739,2]
[367265974,1750722670886,-648.14,0.00022739,2]
[367265975,1750722670895,-532.70076446,0.00022739,2]
[367265976,1750722670906,-490.0,0.00022739,2]
[367265977,1750722670916,-686.78,0.00022739,2]
[367265978,1750722670926,-490.0,0.00022739,2]
[367265979,1750722670935,-556.82,0.00022739,2]
[367265980,1750722670945,-490.0,0.00022739,2]
[367265981,1750722670955,-674.79,0.00022739,2]
[367265982,1750722670965,-490.0,0.00022739,2]
[367265983,1750722670976,-490.0,0.00022739,2]
[367265984,1750722670986,-624.84,0.00022739,2]
[367265985,1750722670996,-1024.07,0.00022739,2]
[367265986,1750722671005,-490.0,0.00022739,2]
[367265987,1750722671014,-490.0,0.00022739,2]
[367265988,1750722671024,-490.0,0.00022739,2]
[367265989,1750722671033,-678.9,0.00022739,2]
[367265990,1750722671042,-492.77192681,0.00022739,2]
[367265991,1750722671051,-490.0,0.00022739,2]
[367265992,1750722671060,-490.0,0.00022739,2]
[367265993,1750722671070,-490.0,0.00022739,2]
[367265994,1750722671080,-490.0,0.00022739,2]
[367265995,1750722671089,-1001.69,0.00022739,2]
[367265996,1750722671098,-490.0,0.00022739,2]
[367265997,1750722671107,-490.0,0.00022739,2]
[367265998,1750722671117,-490.0,0.00022739,2]
[367265999,1750722671126,-490.0,0.00022739,2]
[367266000,1750722671137,-490.0,0.00022739,2]
[367266001,1750722671147,-490.0,0.00022739,2]
[367266002,1750722671156,-490.0,0.00022739,2]
[367266003,1750722671165,-490.0,0.00022739,2]
[367266004,1750722671175,-874.8,0.00022739,2]
[367266005,1750722671185,-490.0,0.00022739,2]
[367266006,1750722671196,-737.47,0.00022739,2]
[367266007,1750722671206,-575.57,0.00022739,2]
[367266008,1750722671215,-490.0,0.00022739,2]
[367266009,1750722671225,-490.0,0.00022739,2]
[367266010,1750722671234,-490.0,0.00022739,2]
[367266011,1750722671243,-490.0,0.00022739,2]
[367266012,1750722671253,-490.0,0.00022739,2]
[367266013,1750722671263,-490.0,0.00022739,2]
[367266014,1750722671274,-624.47,0.00022739,2]
[367266015,1750722671284,-490.0,0.00022739,2]
[367266016,1750722671295,-490.0,0.00022739,2]
[367266017,1750722671305,-490.0,0.00022739,2]
[367266018,1750722671314,-490.0,0.00022739,2]
[367266019,1750722671324,-505.59,0.00022739,2]
[367266020,1750722671334,-664.7,0.00022739,2]
[367266021,1750722671344,-490.0,0.00022739,2]
[367266022,1750722671353,-490.0,0.00022739,2]
[367266023,1750722671363,-490.0,0.00022739,2]
[367266024,1750722671373,-490.0,0.00022739,2]
[367266025,1750722671384,-490.0,0.00022739,2]
[367266026,1750722671394,-502.1,0.00022739,2]
[367266027,1750722671405,-490.0,0.00022739,2]
[367266028,1750722671414,-490.0,0.00022739,2]
[367266029,1750722671424,-636.07649464,0.00022739,2]
[367266030,1750722671434,-831.47,0.00022739,2]
[367266031,1750722671444,-490.0,0.00022739,2]
[367266032,1750722671455,-490.0,0.00022739,2]
[367266033,1750722671465,-490.0,0.00022739,2]
[367266034,1750722671475,-493.62440376,0.00022739,2]
[367266035,1750722671486,-889.99,0.00022739,2]
[367266036,1750722671496,-574.36,0.00022739,2]
[367266037,1750722671505,-644.55,0.00022739,2]
[367266038,1750722671515,-891.28,0.00022739,2]
[367266039,1750722671527,-490.0,0.00022739,2]
[367266040,1750722671538,-1024.42,0.00022739,2]
[367266041,1750722671548,-567.59127177,0.00022739,2]
[367266042,1750722671558,-175.470343,0.00022739,7]
[367266043,1750722671567,-175.470343,0.00022739,7]
[367266044,1750722671577,-490.0,0.00022739,2]
[367266045,1750722671587,-490.0,0.00022739,2]
[367266046,1750722671597,-1009.98,0.00022739,2]
[367266047,1750722671606,-490.0,0.00022739,2]
[367266048,1750722671616,-490.0,0.00022739,2]
[367266049,1750722671625,-1140.07,0.00022739,2]
[367266050,1750722671636,-490.0,0.00022739,2]
[367266051,1750722671646,-490.0,0.00022739,2]
[367266052,1750722671658,-490.0,0.00022739,2]
[367266053,1750722671668,-809.41,0.00022739,2]
[367266054,1750722671680,-490.0,0.00022739,2]
[367266055,1750722671689,-490.0,0.00022739,2]
[367266056,1750722671699,-490.0,0.00022739,2]
[367266057,1750722671708,-490.0,0.00022739,2]
[367266058,1750722671718,-490.0,0.00022739,2]
[367266059,1750722671727,-490.0,0.00022739,2]
[367266060,1750722671736,-490.0,0.00022739,2]
[367266061,1750722671746,-1220.1,0.00022739,2]
[367266062,1750722671755,-707.74,0.00022739,2]
[367266063,1750722671765,-863.02,0.00022739,2]
[367266064,1750722671775,-490.0,0.00022739,2]
[367266065,1750722671784,-490.0,0.00022739,2]
[367266066,1750722671794,-490.0,0.00022739,2]
[367266067,1750722671804,-524.66,0.00022739,2]
[367266068,1750722671813,-490.0,0.00022739,2]
[367266069,1750722671823,-347.7030848,0.00022739,2]
[367266070,1750722671835,-490.0,0.00022739,2]
[367266071,1750722671844,-611.39204787,0.00022739,2]
[367266072,1750722671854,-490.0,0.00022739,2]
[367266073,1750722672142,-490.0,0.00022739,2]
[367266074,1750722672161,-490.0,0.00022739,2]
[367266075,1750722672171,-490.0,0.00022739,2]
[367266076,1750722672181,-490.0,0.00022739,2]
[367266077,1750722672190,-701.07,0.00022739,2]
[367266078,1750722672199,-490.0,0.00022739,2]
[367266079,1750722672208,-490.0,0.00022739,2]
[367266080,1750722672217,-743.33,0.00022739,2]
[367266081,1750722672227,-490.0,0.00022739,2]
[367266082,1750722672237,-490.0,0.00022739,2]
[367266083,1750722672246,-8500.71,0.00022739,2]
[367266084,1750722672256,-490.0,0.00022739,2]
[367266085,1750722672265,-280.54971393,0.00022739,2]
[367266086,1750722672274,-421.55809701,0.00022739,2]
[367266087,1750722672283,-866.14,0.00022739,2]
[367266088,1750722672294,-490.0,0.00022739,2]
[367266089,1750722672304,-490.0,0.00022739,2]
[367266090,1750722672313,-726.9,0.00022739,2]
[367266091,1750722672322,-658.73,0.00022739,2]
[367266092,1750722672331,-490.0,0.00022739,2]
[367266093,1750722672341,-709.26,0.00022739,2]
[367266094,1750722672350,-490.0,0.00022739,2]
[367266095,1750722672359,-490.0,0.00022739,2]
[367266096,1750722672369,-490.0,0.00022739,2]
[367266097,1750722672378,-490.0,0.00022739,2]
[367266098,1750722672388,-490.0,0.00022739,2]
[367266099,1750722672397,-520.15,0.00022739,2]
[367266100,1750722672407,-668.39,0.00022739,2]
[367266101,1750722672417,-890.8,0.00022739,2]
[367266102,1750722672426,-490.0,0.00022739,2]
[367266103,1750722672436,-1817.04,0.00022739,2]
[367266104,1750722672445,-490.0,0.00022739,2]
[367266105,1750722672454,-490.0,0.00022739,2]
[367266106,1750722672464,-490.0,0.00022739,2]
[367266107,1750722672473,-490.0,0.00022739,2]
[367266108,1750722672483,-490.0,0.00022739,2]
[367266109,1750722672492,-490.0,0.00022739,2]
[367266110,1750722672501,-490.0,0.00022739,2]
[367266111,1750722672511,-660.76,0.00022739,2]
[367266112,1750722672520,-889.57,0.00022739,2]
[367266113,1750722672529,-852.61,0.00022739,2]
[367266114,1750722672539,-639.15,0.00022739,2]
[367266115,1750722672549,-490.0,0.00022739,2]
[367266116,1750722672558,-725.63,0.00022739,2]
[367266117,1750722672567,-1036.14,0.00022739,2]
[367266118,1750722672576,-490.0,0.00022739,2]
[367266119,1750722672586,-490.0,0.00022739,2]
[367266120,1750722672595,-490.0,0.00022739,2]
[367266121,1750722672605,-250.0,0.00022739,2]
[367266122,1750722672614,-151.0,0.00022739,7]
[367266123,1750722672623,-317.1094637,0.00022739,2]
[367266124,1750722672634,-490.0,0.00022739,2]
[367266125,1750722672643,-687.15,0.00022739,2]
[367266126,1750722672652,-2016.76,0.00022739,2]
[367266127,1750722672661,-3451.37,0.00022739,2]
[367266128,1750722672670,-490.0,0.00022739,2]
[367266129,1750722672680,-490.0,0.00022739,2]
[367266130,1750722672689,-490.0,0.00022739,2]
[367266131,1750722672699,-490.0,0.00022739,2]
[367266132,1750722672708,-1486.84,0.00022739,2]
[367266133,1750722672717,-151.0,0.00022739,7]
[367266134,1750722672725,-2600.88,0.00022739,2]
[367266135,1750722672734,-490.0,0.00022739,2]
[367266136,1750722672743,-988.75,0.00022739,2]
[367266137,1750722672752,-490.0,0.00022739,2]
[367266138,1750722672761,-490.0,0.00022739,2]
[367266139,1750722672771,-490.0,0.00022739,2]
[367266140,1750722672780,-852.3,0.00022739,2]
[367266141,1750722672789,-490.0,0.00022739,2]
[367266142,1750722672799,-891.95,0.00022739,2]
[367266143,1750722672808,-490.0,0.00022739,2]
[367266144,1750722672817,-490.0,0.00022739,2]
[367266145,1750722672827,-543.07,0.00022739,2]
[367266146,1750722672839,-490.0,0.00022739,2]
[367266147,1750722672848,-300.0,0.00022739,2]
[367266148,1750722672858,-533.43,0.00022739,2]
[367266149,1750722672867,-490.0,0.00022739,2]
[367266150,1750722672877,-490.0,0.00022739,2]
[367266151,1750722672888,-685.3,0.00022739,2]
[367266152,1750722672897,-490.0,0.00022739,2]
[367266153,1750722672909,-1059.99,0.00022739,2]
[367266154,1750722672919,-490.0,0.00022739,2]
[367266155,1750722672929,-1239.33,0.00022739,2]
[367266156,1750722672939,-1225.41,0.00022739,2]
[367266157,1750722672948,-1859.87,0.00022739,2]
[367266158,1750722672958,-480.0,0.00022739,2]
[367266159,1750722672968,-747.66,0.00022739,2]
[367266160,1750722672977,-3515.34,0.00022739,2]
[367266161,1750722672987,-490.0,0.00022739,2]
[367266162,1750722672997,-644.73,0.00022739,2]
[367266163,1750722673007,-490.0,0.00022739,2]
[367266164,1750722673016,-560.0,0.00022739,2]
[367266165,1750722673025,-490.0,0.00022739,2]
[367266166,1750722673035,-2258.43,0.00022739,2]
[367266167,1750722673044,-588.18,0.00022739,2]
[367266168,1750722673053,-1049.17,0.00022739,2]
[367266169,1750722673063,-1516.29,0.00022739,2]
[367266170,1750722673072,-490.0,0.00022739,2]
[367266171,1750722673082,-68697.11,0.00022739,2]
[367266172,1750722673091,-936.03,0.00022739,2]
[367266173,1750722673100,-1377.576921,0.00022739,7]
[367266174,1750722673110,-1139.14,0.00022739,2]
[367266175,1750722673120,-490.0,0.00022739,2]
[367266176,1750722673130,-647.9,0.00022739,2]
[367266177,1750722673139,-803.72,0.00022739,2]
[367266178,1750722673149,-516.62,0.00022739,2]
[367266179,1750722673159,-150.34595581,0.00022739,2]
[367266180,1750722673168,-1410.85,0.00022739,2]
[367266181,1750722673178,-1134.51,0.00022739,2]
[367266182,1750722673187,-498.27,0.00022739,2]
[367266183,1750722673197,-490.0,0.00022739,2]
[367266184,1750722673206,-1377.576921,0.00022739,7]
[367266185,1750722673215,-253.985692,0.00022739,7]
[367266186,1750722673224,-971.99,0.00022739,2]
[367266187,1750722673234,-490.0,0.00022739,2]
[367266188,1750722673243,-151.0,0.00022739,7]
[367266189,1750722673252,-613.92,0.00022739,2]
[367266190,1750722673262,-527.41,0.00022739,2]
[367266191,1750722673271,-490.0,0.00022739,2]
[367266192,1750722673280,-490.0,0.00022739,2]
[367266193,1750722673290,-854.15,0.00022739,2]
[367266194,1750722673299,-1578.51,0.00022739,2]
[367266195,1750722673309,-502.06,0.00022739,2]
[367266196,1750722673319,-592.97845404,0.00022739,2]
[367266197,1750722673329,-1004.78,0.00022739,2]
[367266198,1750722673339,-722.59,0.00022739,2]
[367266199,1750722673349,-1149.68,0.00022739,2]
[367266200,1750722673358,-490.0,0.00022739,2]
[367266201,1750722673368,-1046.97,0.00022739,2]
[367266202,1750722673377,-490.0,0.00022739,2]
[367266203,1750722673387,-389.38055845,0.00022739,2]
[367266204,1750722673397,-490.0,0.00022739,2]
[367266205,1750722673406,-490.0,0.00022739,2]
[367266206,1750722673416,-490.0,0.00022739,2]
[367266207,1750722673425,-581.05,0.00022739,2]
[367266208,1750722673434,-1200.68,0.00022739,2]
[367266209,1750722673444,-694.62,0.00022739,2]
[367266210,1750722673453,-490.0,0.00022739,2]
[367266211,1750722673462,-4672.05,0.00022739,2]
[367266212,1750722673473,-189.596076,0.00022739,7]
[367266213,1750722673482,-490.0,0.00022739,2]
[367266214,1750722673492,-507.86,0.00022739,2]
[367266215,1750722673501,-684.55,0.00022739,2]
[367266216,1750722673510,-490.0,0.00022739,2]
[367266217,1750722673520,-460.0,0.00022739,2]
[367266218,1750722673529,-1066.19,0.00022739,2]
[367266219,1750722673538,-4445.32,0.00022739,2]
[367266220,1750722673548,-1782.62,0.00022739,2]
[367266221,1750722673557,-490.0,0.00022739,2]
[367266222,1750722673567,-490.0,0.00022739,2]
[367266223,1750722673576,-490.0,0.00022739,2]
[367266224,1750722673585,-869.16,0.00022739,2]
[367266225,1750722673594,-165.262408,0.00022739,7]
[367266226,1750722673604,-993.54,0.00022739,2]
[367266227,1750722673613,-490.0,0.00022739,2]
[367266228,1750722673622,-151.0,0.00022739,7]
[367266229,1750722673631,-190.0,0.00022739,2]
[367266230,1750722673640,-490.0,0.00022739,2]
[367266231,1750722673649,-1775.91,0.00022739,2]
[367266232,1750722673659,-490.0,0.00022739,2]
[367266233,1750722673668,-5169.32,0.00022739,2]
[367266234,1750722673678,-638.5,0.00022739,2]
[367266235,1750722673688,-775.96,0.00022739,2]
[367266236,1750722673698,-641.17,0.00022739,2]
[367266237,1750722673707,-490.0,0.00022739,2]
[367266238,1750722673716,-983.36,0.00022739,2]
[367266239,1750722673726,-1008.32,0.00022739,2]
[367266240,1750722673735,-490.0,0.00022739,2]
[367266241,1750722673744,-490.0,0.00022739,2]
[367266242,1750722673753,-1881.06,0.00022739,2]
[367266243,1750722673763,-829.17,0.00022739,2]
[367266244,1750722673773,-1812.42,0.00022739,2]
[367266245,1750722673783,-490.0,0.00022739,2]
[367266246,1750722673793,-834.28,0.00022739,2]
[367266247,1750722673803,-704.39,0.00022739,2]
[367266248,1750722673812,-622.57,0.00022739,2]
[367266249,1750722673821,-857.91,0.00022739,2]
[367266250,1750722673832,-1188.59,0.00022739,2]
[367266251,1750722673841,-495.31,0.00022739,2]
[367266252,1750722673851,-153.756277,0.00022739,7]
[367266253,1750722673860,-798.05,0.00022739,2]
[367266254,1750722673870,-2746.66,0.00022739,2]
[367266255,1750722673878,-153.756277,0.00022739,7]
[367266256,1750722673888,-490.0,0.00022739,2]
[367266257,1750722673897,-1013.71,0.00022739,2]
[367266258,1750722673907,-607.3,0.00022739,2]
[367266259,1750722673915,-490.0,0.00022739,2]
[367266260,1750722673923,-769.79,0.00022739,2]
[367266261,1750722673931,-490.0,0.00022739,2]
[367266262,1750722673939,-1102.34,0.00022739,2]
[367266263,1750722673947,-490.0,0.00022739,2]
[367266264,1750722673957,-490.0,0.00022739,2]
[367266265,1750722673966,-490.0,0.00022739,2]
[367266266,1750722673976,-793.99,0.00022739,2]
[367266267,1750722673985,-2843.97,0.00022739,2]
[367266268,1750722673994,-151.0,0.00022739,7]
[367266269,1750722674003,-490.0,0.00022739,2]
[367266270,1750722674013,-21749.08,0.00022739,2]
[367266271,1750722674022,-490.0,0.00022739,2]
[367266272,1750722674031,-490.0,0.00022739,2]
[367266273,1750722674040,-700.64,0.00022739,2]
[367266274,1750722674050,-490.0,0.00022739,2]
[367266275,1750722674059,-985.74,0.00022739,2]
[367266276,1750722674068,-576.52,0.00022739,2]
[367266277,1750722674078,-702.04,0.00022739,2]